bitfinex/quotes_SOLUSD_20241220
["timestamp","ask_amount","ask_price","bid_price","bid_amount"]
[1734670285114,15.50229103,196.57,196.5,15.50229103]
[1734670285408,0.26116654,196.56,196.5,15.50229103]
[1734670287205,0.26116654,196.57,196.51,15.50229103]
[1734670287397,0.26116654,196.57,196.52,15.50229103]
[1734670288214,15.76345757,196.58,196.5,15.50229103]
[1734670288798,0.26116654,196.58,196.52,15.50229103]
[1734670289292,0.26116654,196.58,196.53,15.50229103]
[1734670289500,0.26116654,196.59,196.54,15.50229103]
[1734670290200,0.26116654,196.6,196.54,15.50229103]
[1734670290402,0.26116654,196.6,196.55,15.50229103]
[1734670291022,0.26116654,196.6,196.54,15.50229103]
[1734670291386,0.26116654,196.61,196.55,15.50229103]
[1734670292006,0.26116654,196.61,196.54,15.50229103]
[1734670293015,0.26116654,196.61,196.55,15.50229103]
[1734670294015,0.26116654,196.61,196.56,15.50229103]
[1734670294218,0.26116654,196.63,196.56,15.50229103]
[1734670294887,0.26116654,196.63,196.57,15.50229103]
[1734670295591,0.26116654,196.63,196.56,15.50229103]
[1734670296217,15.76345757,196.63,196.52,12.7212]
[1734670296401,15.50229103,196.62,196.54,15.50229103]
[1734670296601,0.26116654,196.61,196.54,15.50229103]
[1734670296904,15.76345757,196.61,196.53,15.50229103]
[1734670297108,15.50229103,196.6,196.53,15.50229103]
[1734670297291,23.776884,196.64,196.52,15.50229103]
[1734670297292,15.76345757,196.59,196.52,15.50229103]
[1734670298012,8.3647,196.58,196.49,0.76322261]
[1734670298211,0.26116654,196.59,196.36,7.94158222]
[1734670298212,20.0,196.44,196.36,7.94158222]
[1734670298413,8.3647,196.46,196.35,15.88316445]
[1734670298414,15.50229103,196.37,196.35,1e-08]
[1734670298625,20.0,196.34,196.24,6.1558]
[1734670298806,15.50229103,196.31,196.2,17.74139103]
[1734670299001,20.0,196.28,196.19,94.36161474]
[1734670299318,23.776884,196.27,196.18,5.08]
[1734670299620,20.0,196.2,196.07,6.6048]
[1734670299793,15.50229103,196.15,196.07,15.50229103]
[1734670299997,25.87160181,196.14,196.07,15.50229103]
[1734670300314,4.68505131,196.14,196.03,0.6198882]
[1734670300513,25.35287856,196.13,196.06,15.50229103]
[1734670300705,25.53586638,196.11,196.06,15.50229103]
[1734670301024,25.53586638,196.11,196.08,20.0]
[1734670301328,10.33403653,196.1,196.06,0.17930905]
[1734670301528,10.33403653,196.1,195.96,129.69525036]
[1734670301713,10.33403653,196.1,196.06,24.98699236]
[1734670301918,87.4081444,196.09,196.06,24.98699236]
[1734670302317,87.4081444,196.09,196.08,24.98699236]
[1734670302530,77.07410787,196.09,196.08,23.776884]
[1734670302838,77.07410787,196.09,196.08,48.76387636]
[1734670303404,74.36490787,196.09,196.08,48.76387636]
[1734670303667,71.57180787,196.09,196.08,48.76387636]
[1734670303807,24.98699236,196.19,196.08,48.76387636]
[1734670304141,24.98699236,196.21,196.13,24.98699236]
[1734670304444,24.98699236,196.23,196.16,24.98699236]
[1734670304625,0.95568794,196.22,196.15,24.98699236]
[1734670304807,25.9426803,196.22,196.15,24.98699236]
[1734670306637,25.9426803,196.22,196.15,20.0]
[1734670306837,24.98699236,196.19,196.12,24.98699236]
[1734670307046,0.95589127,196.18,196.12,24.98699236]
[1734670308312,0.95589127,196.18,196.13,24.98699236]
[1734670308532,3.10843185,196.25,196.12,24.98699236]
[1734670308533,25.9428645,196.19,196.12,24.98699236]
[1734670309235,24.98699236,196.18,196.1,44.98699236]
[1734670309444,25.94296097,196.17,196.1,44.98699236]
[1734670309738,25.94296097,196.17,196.09,24.98699236]
[1734670309940,25.94296097,196.17,196.1,24.98699236]
[1734670310314,24.98699236,196.16,196.09,24.98699236]
[1734670310515,0.95605335,196.15,196.09,24.98699236]
[1734670311845,25.94304571,196.15,196.08,24.98699236]
[1734670312326,25.94304571,196.15,196.07,37.73699236]
[1734670313615,24.98699236,196.14,196.07,37.73699236]
[1734670314918,24.98699236,196.15,196.08,24.98699236]
[1734670315120,0.95608354,196.14,196.08,24.98699236]
[1734670317354,25.9430759,196.14,196.07,24.98699236]
[1734670320348,0.95608354,196.14,196.07,24.98699236]
[1734670320649,0.95608354,196.14,196.08,44.98699236]
[1734670320833,25.9430759,196.14,196.08,20.0]
[1734670321024,16.57156386,196.14,196.08,20.0]
[1734670321536,15.61548032,196.13,196.08,20.0]
[1734670321847,15.61548032,196.13,196.06,15.61548032]
[1734670322047,0.95614315,196.12,196.06,15.61548032]
[1734670322238,15.61548032,196.13,196.06,15.61548032]
[1734670323669,0.95614226,196.19,196.1,15.61548032]
[1734670323862,15.61548032,196.2,196.13,15.61548032]
[1734670324057,0.9558641,196.19,196.14,15.61548032]
[1734670324238,0.9558641,196.19,196.13,15.61548032]
[1734670324437,16.57134442,196.19,196.13,15.61548032]
[1734670324757,16.57134442,196.19,196.12,15.61548032]
[1734670325263,0.9558641,196.19,196.13,15.61548032]
[1734670325436,15.61548032,196.2,196.13,15.61548032]
[1734670325635,0.95579304,196.19,196.13,15.61548032]
[1734670326350,0.95579304,196.19,196.12,20.0]
[1734670326563,0.95579304,196.19,196.13,15.61548032]
[1734670326871,16.57127336,196.19,196.12,35.61548032]
[1734670327366,0.95579304,196.19,196.13,15.61548032]
[1734670327772,16.57127336,196.19,196.12,35.61548032]
[1734670327952,15.61548032,196.18,196.12,20.0]
[1734670328154,0.95592447,196.17,196.12,20.0]
[1734670328456,0.95592447,196.17,196.09,12.7489]
[1734670328457,15.61548032,196.16,196.09,28.36438032]
[1734670328677,16.57150304,196.15,196.08,15.61548032]
[1734670329165,0.95602272,196.15,196.09,15.61548032]
[1734670330252,0.95602272,196.15,196.1,15.61548032]
[1734670330474,15.61548032,196.18,196.11,15.61548032]
[1734670330652,0.95594256,196.17,196.11,15.61548032]
[1734670331948,0.95594256,196.17,196.1,15.61548032]
[1734670332366,0.95594256,196.17,196.11,15.61548032]
[1734670334257,0.9559486,196.18,196.11,15.61548032]
[1734670336170,0.9559486,196.18,196.13,15.61548032]
[1734670336369,15.61548032,196.21,196.14,15.61548032]
[1734670336676,4.65341045,196.2,196.14,15.61548032]
[1734670337075,3.69760523,196.19,196.14,15.61548032]
[1734670337573,3.69760523,196.18,196.15,15.61548032]
[1734670337761,3.69760523,196.18,196.16,15.61548032]
[1734670337964,3.69760523,196.19,196.15,15.61548032]
[1734670338585,3.69760523,196.18,196.16,15.61548032]
[1734670338752,3.69760523,196.18,196.1,15.61548032]
[1734670338753,3.69760523,196.18,196.17,15.61548032]
[1734670338951,0.95569457,196.24,196.17,15.61548032]
[1734670339153,0.95569457,196.24,196.18,15.61548032]
[1734670339456,3.7145779,196.23,196.18,15.61548032]
[1734670339762,3.7145779,196.23,196.19,15.61548032]
[1734670339962,3.7145779,196.22,196.2,15.61548032]
[1734670340277,3.7145779,196.22,196.19,15.61548032]
[1734670340461,3.7145779,196.21,196.19,15.61548032]
[1734670340853,3.7145779,196.2,196.19,15.61548032]
[1734670341386,3.7145779,196.2,196.18,15.61548032]
[1734670341765,3.7145779,196.19,196.18,15.61548032]
[1734670342359,3.7145779,196.19,196.12,6.1461]
[1734670342567,3.7145779,196.18,196.14,15.61548032]
[1734670342965,3.7145779,196.17,196.14,15.61548032]
[1734670343482,3.7145779,196.16,196.15,15.61548032]
[1734670343852,3.7145779,196.16,196.13,15.61548032]
[1734670344053,0.9559584,196.15,196.1,15.61548032]
[1734670344449,3.7145779,196.14,196.09,15.61548032]
[1734670344756,0.95607346,196.13,196.08,15.61548032]
[1734670344953,4.67065136,196.13,196.08,15.61548032]
[1734670345470,3.7145779,196.12,196.08,15.61548032]
[1734670345851,3.7145779,196.11,196.09,15.61548032]
[1734670346057,3.7145779,196.11,196.1,15.61548032]
[1734670349288,3.7145779,196.11,196.09,15.61548032]
[1734670349503,3.7145779,196.11,196.08,15.61548032]
[1734670349991,3.7145779,196.1,196.08,15.61548032]
[1734670350289,3.7145779,196.09,196.08,15.61548032]
[1734670350860,3.7145779,196.09,196.07,15.61548032]
[1734670351070,0.95612401,196.08,195.98,12.7558]
[1734670351369,3.7145779,196.07,196.02,15.61548032]
[1734670351561,3.7145779,196.07,196.05,15.61548032]
[1734670351758,3.7145779,196.06,195.98,13.520895]
[1734670352193,3.7145779,196.05,195.98,13.520895]
[1734670352488,3.7145779,196.05,196.01,20.0]
[1734670352790,0.8300779,196.04,196.02,12.7538]
[1734670353082,0.95615869,196.14,196.05,20.0]
[1734670353263,0.95615869,196.14,196.08,15.61548032]
[1734670354694,15.61548032,196.13,196.06,15.61548032]
[1734670354891,16.57175667,196.12,196.05,15.61548032]
[1734670355071,15.61548032,196.11,196.04,15.61548032]
[1734670355270,0.95637102,196.1,196.04,15.61548032]
[1734670355671,15.61548032,196.09,196.02,15.61548032]
[1734670355972,0.95645872,196.08,196.02,15.61548032]
[1734670356373,16.57193904,196.08,196.01,15.61548032]
[1734670357299,15.61548032,196.07,196.0,15.61548032]
[1734670357595,0.95655909,196.06,196.0,15.61548032]
[1734670358289,0.95655909,196.06,195.93,6.174]
[1734670358290,15.61548032,196.03,195.97,15.61548032]
[1734670358493,0.9567413,196.02,195.97,15.61548032]
[1734670359271,0.9567413,196.02,195.96,15.61548032]
[1734670359466,16.57222162,196.02,195.95,15.61548032]
[1734670359674,0.9567413,196.02,195.97,15.61548032]
[1734670360400,0.9567413,196.02,195.96,15.61548032]
[1734670361088,0.9567413,196.02,195.97,15.61548032]
[1734670361904,0.9567413,196.02,195.96,15.61548032]
[1734670362204,16.57222162,196.02,195.95,15.61548032]
[1734670362602,15.61548032,196.01,195.94,15.61548032]
[1734670362803,15.61548032,195.99,195.92,15.61548032]
[1734670362992,0.956905,195.98,195.92,15.61548032]
[1734670363735,16.57238532,195.98,195.91,15.61548032]
[1734670364799,15.61548032,195.97,195.9,15.61548032]
[1734670364995,0.95697282,195.96,195.9,15.61548032]
[1734670366291,0.95697282,195.96,195.92,15.61548032]
[1734670366508,0.95695306,195.98,195.94,15.61548032]
[1734670366687,0.95682831,196.01,195.96,15.61548032]
[1734670367419,15.61548032,196.0,195.91,20.0]
[1734670367583,15.61548032,196.0,195.84,3.76598521]
[1734670367584,15.61548032,195.93,195.86,15.61548032]
[1734670367787,0.95720371,195.92,195.86,15.61548032]
[1734670368189,0.95720371,195.92,195.88,15.61548032]
[1734670368511,0.95718104,195.94,195.88,15.61548032]
[1734670369014,16.57266136,195.94,195.86,15.61548032]
[1734670369498,15.61548032,195.92,195.85,15.61548032]
[1734670369693,16.5727654,195.91,195.84,15.61548032]
[1734670372223,15.61548032,195.89,195.83,0.6198882]
[1734670372393,0.95744885,195.88,195.83,16.23536852]
[1734670372593,0.95731613,195.89,195.85,15.61548032]
[1734670372793,0.95730836,195.91,195.85,15.61548032]
[1734670373191,16.57278868,195.91,195.84,15.61548032]
[1734670373697,15.61548032,195.9,195.83,16.23536852]
[1734670373997,0.95738662,195.89,195.83,16.23536852]
[1734670374400,16.57286694,195.89,195.83,0.6198882]
[1734670376017,0.95738662,195.89,195.83,16.23536852]
[1734670376199,0.95738662,195.89,195.84,15.61548032]
[1734670376400,0.95732198,195.88,195.84,15.61548032]
[1734670376701,15.61548032,195.86,195.83,0.6198882]
[1734670376907,0.9575655,195.85,195.83,0.6198882]
[1734670377628,16.57304582,195.85,195.83,0.6198882]
[1734670378126,15.61548032,195.84,195.83,0.6198882]
[1734670378692,39.39236432,195.84,195.83,0.6198882]
[1734670379229,15.61548032,195.84,195.83,0.6198882]
[1734670380003,0.9575655,195.85,195.83,0.6198882]
[1734670380499,16.57300253,195.87,195.83,0.6198882]
[1734670380910,0.95752221,195.87,195.83,16.23536852]
[1734670381111,16.57287815,195.89,195.83,0.6198882]
[1734670381318,15.61548032,195.88,195.83,0.6198882]
[1734670381495,0.95742946,195.87,195.83,0.6198882]
[1734670381822,15.61548032,195.89,195.83,0.6198882]
[1734670382027,15.61548032,195.88,195.83,0.6198882]
[1734670382198,16.57290637,195.88,195.83,0.6198882]
[1734670384998,0.95742835,195.9,195.84,15.61548032]
[1734670385203,0.95742835,195.9,195.85,15.61548032]
[1734670385594,0.95731689,195.91,195.85,15.61548032]
[1734670387137,15.61548032,195.9,195.83,16.23536852]
[1734670387336,0.95735563,195.89,195.83,16.23536852]
[1734670387824,0.95735563,195.89,195.84,15.61548032]
[1734670388002,0.95728801,195.9,195.84,15.61548032]
[1734670388404,0.95728801,195.9,195.85,15.61548032]
[1734670388722,15.61548032,195.92,195.85,15.61548032]
[1734670388923,6.5476,195.96,195.86,15.61548032]
[1734670388924,0.95720644,195.91,195.86,15.61548032]
[1734670389139,0.95717273,195.92,195.88,15.61548032]
[1734670389426,0.95717273,195.95,195.9,15.61548032]
[1734670389832,0.95717273,195.95,195.89,15.61548032]
[1734670390039,3.74665145,195.94,195.89,15.61548032]
[1734670390233,0.95707512,195.93,195.89,15.61548032]
[1734670390541,15.61548032,195.91,195.85,15.61548032]
[1734670390746,0.95733047,195.99,195.9,15.61548032]
[1734670390907,15.61548032,196.02,195.95,15.61548032]
[1734670391108,15.27,195.93,195.83,0.6198882]
[1734670391336,15.61548032,195.76,195.67,45.61548032]
[1734670391545,0.95798635,195.75,195.67,45.61548032]
[1734670392038,15.61548032,195.72,195.67,30.0]
[1734670392245,15.61548032,195.7,195.67,30.0]
[1734670392407,0.95829345,195.69,195.67,30.0]
[1734670392934,26.06477579,195.69,195.67,30.0]
[1734670393239,69.27666207,195.69,195.67,30.0]
[1734670393448,20.39329573,195.69,195.67,30.0]
[1734670393606,0.95829345,195.69,195.67,30.0]
[1734670394714,26.06477579,195.69,195.67,30.0]
[1734670394920,25.10648234,195.72,195.67,30.0]
[1734670395134,0.95816107,195.71,195.67,30.0]
[1734670395339,25.10648234,195.72,195.67,30.0]
[1734670395539,0.95816133,195.71,195.67,30.0]
[1734670395738,25.10648234,195.75,195.68,65.10648234]
[1734670395944,25.10648234,195.69,195.68,40.0]
[1734670396245,25.10648234,195.7,195.68,40.0]
[1734670396634,0.95794691,195.74,195.68,40.0]
[1734670396819,0.95804136,195.77,195.7,25.10648234]
[1734670397210,26.0645237,195.77,195.7,25.10648234]
[1734670397431,26.0645237,195.77,195.69,25.10648234]
[1734670397644,25.10648234,195.76,195.69,25.10648234]
[1734670397846,25.10648234,195.7,195.68,40.0]
[1734670398150,26.06475855,195.69,195.68,40.0]
[1734670401862,26.06475855,195.69,195.68,22.23985367]
[1734670402770,25.10648234,195.71,195.68,22.23985367]
[1734670402955,0.95821902,195.7,195.68,22.23985367]
[1734670403261,25.10648234,195.69,195.68,22.23985367]
[1734670403634,26.06470136,195.7,195.68,22.23985367]
[1734670406367,25.10648234,195.69,195.68,22.23985367]
[1734670406758,48.88336634,195.69,195.68,22.23985367]
[1734670407146,53.58088855,195.69,195.68,22.23985367]
[1734670407341,23.776884,195.68,195.67,30.0]
[1734670407541,23.776884,195.68,195.66,10.0]
[1734670407542,48.88336634,195.68,195.66,10.0]
[1734670407843,49.84213547,195.67,195.66,10.0]
[1734670408048,20.0,195.64,195.63,0.6198882]
[1734670408238,20.0,195.6,195.48,25.10648234]
[1734670408441,25.10648234,195.54,195.47,31.74958234]
[1734670408647,0.95907017,195.53,195.47,31.74958234]
[1734670409065,26.06555251,195.53,195.46,25.10648234]
[1734670409250,26.06555251,195.53,195.47,25.10648234]
[1734670409668,25.10648234,195.51,195.44,25.72637054]
[1734670409868,25.10648234,195.57,195.5,25.10648234]
[1734670410184,0.95888611,195.56,195.51,25.10648234]
[1734670410343,26.06536845,195.56,195.45,12.7909]
[1734670410545,25.10648234,195.55,195.45,12.7909]
[1734670410763,0.95902116,195.54,195.45,12.7909]
[1734670410940,0.95902116,195.54,195.48,25.10648234]
[1734670411455,26.06549456,195.59,195.52,25.10648234]
[1734670411847,0.95901222,195.59,195.53,25.10648234]
[1734670412664,25.10648234,195.58,195.51,25.10648234]
[1734670412872,0.95883858,195.57,195.51,25.10648234]
[1734670413074,0.95883858,195.57,195.51,15.70439578]
[1734670413673,6.248,195.65,195.52,15.70439578]
[1734670413674,15.70439578,195.59,195.52,15.70439578]
[1734670413874,0.95877874,195.58,195.52,15.70439578]
[1734670414058,15.70439578,195.6,195.53,15.70439578]
[1734670414259,0.95877912,195.59,195.53,15.70439578]
[1734670415482,15.70439578,195.57,195.51,12.7868]
[1734670415684,0.95889338,195.56,195.5,15.70439578]
[1734670417682,0.95889338,195.56,195.49,15.70439578]
[1734670418575,16.66328916,195.56,195.49,15.70439578]
[1734670418964,15.70439578,195.54,195.42,12.7923]
[1734670419274,15.70439578,195.52,195.45,15.70439578]
[1734670419479,0.95917347,195.51,195.45,15.70439578]
[1734670419980,0.95913367,195.51,195.45,15.70439578]
[1734670420354,0.95913367,195.51,195.44,16.32428398]
[1734670420779,16.66352945,195.51,195.44,0.6198882]
[1734670420985,15.70439578,195.49,195.44,0.6198882]
[1734670421184,0.95932396,195.48,195.44,0.6198882]
[1734670421363,0.95931459,195.49,195.44,0.6198882]
[1734670422783,16.66371037,195.49,195.44,0.6198882]
[1734670422983,0.95931459,195.49,195.44,0.6198882]
[1734670423963,0.95931459,195.49,195.44,16.32428398]
[1734670424288,23.776884,195.55,195.45,15.70439578]
[1734670424289,0.95932074,195.5,195.45,15.70439578]
[1734670424466,0.95925374,195.52,195.46,15.70439578]
[1734670424877,16.66364952,195.52,195.45,15.70439578]
[1734670426190,0.95908414,195.57,195.5,15.70439578]
[1734670426396,16.66347992,195.57,195.5,15.70439578]
[1734670426593,0.9590029,195.61,195.52,15.70439578]
[1734670426894,19.4385825,195.6,195.53,15.70439578]
[1734670427095,16.66318475,195.59,195.52,15.70439578]
[1734670427297,15.70439578,195.58,195.51,15.70439578]
[1734670427490,16.66333936,195.57,195.5,15.70439578]
[1734670428101,15.70439578,195.56,195.49,15.70439578]
[1734670428297,0.95901275,195.55,195.5,15.70439578]
[1734670428606,0.95901275,195.55,195.44,0.6198882]
[1734670428607,15.70439578,195.54,195.44,0.6198882]
[1734670428826,16.66352214,195.53,195.46,15.70439578]
[1734670431107,16.66352214,195.53,195.44,0.6198882]
[1734670431299,15.70439578,195.51,195.44,0.6198882]
[1734670431627,16.66370919,195.5,195.44,0.6198882]
[1734670432789,0.95931341,195.5,195.44,0.6198882]
[1734670433007,0.95931341,195.5,195.44,16.32428398]
[1734670433220,0.95931341,195.5,195.44,0.6198882]
[1734670433376,15.70439578,195.49,195.44,0.6198882]
[1734670433693,15.70439578,195.51,195.44,0.6198882]
[1734670433901,15.70439578,195.46,195.44,0.6198882]
[1734670434196,15.70439578,195.49,195.44,0.6198882]
[1734670434393,0.95939721,195.48,195.44,0.6198882]
[1734670435917,15.70439578,195.48,195.44,0.6198882]
[1734670436214,0.95934436,195.47,195.44,0.6198882]
[1734670436422,0.95935531,195.48,195.44,0.6198882]
[1734670437106,3.76390991,195.47,195.44,0.6198882]
[1734670437697,0.95935531,195.48,195.44,0.6198882]
[1734670437902,0.95933944,195.49,195.44,0.6198882]
[1734670438425,3.76448517,195.48,195.44,0.6198882]
[1734670438896,3.76448517,195.47,195.44,0.6198882]
[1734670439418,0.95923814,195.5,195.44,16.32428398]
[1734670439898,3.76432655,195.49,195.44,16.32428398]
[1734670440101,3.76432655,195.49,195.44,0.6198882]
[1734670440413,3.76432655,195.48,195.44,0.6198882]
[1734670440798,0.95923814,195.5,195.44,16.32428398]
[1734670441121,3.76465012,195.49,195.44,16.32428398]
[1734670441710,3.76465012,195.48,195.44,16.32428398]
[1734670441912,3.76465012,195.48,195.44,0.6198882]
[1734670442222,16.66363392,195.5,195.44,0.6198882]
[1734670442425,3.76632619,195.49,195.44,0.6198882]
[1734670442716,4.72561323,195.49,195.44,0.6198882]
[1734670442923,3.76632619,195.48,195.44,0.6198882]
[1734670443116,3.76632619,195.48,195.44,16.32428398]
[1734670443315,3.76632619,195.47,195.44,16.32428398]
[1734670443718,0.95926204,195.5,195.44,16.32428398]
[1734670444127,16.66365782,195.5,195.44,0.6198882]
[1734670444426,3.76738609,195.49,195.44,0.6198882]
[1734670444621,0.95927618,195.48,195.44,0.6198882]
[1734670444920,0.95927618,195.49,195.44,0.6198882]
[1734670445137,3.76693934,195.48,195.44,0.6198882]
[1734670445633,0.95927618,195.49,195.44,0.6198882]
[1734670445933,16.66367196,195.49,195.44,0.6198882]
[1734670446221,15.70439578,195.47,195.44,0.6198882]
[1734670446412,3.76880966,195.48,195.44,16.32428398]
[1734670446811,3.76880966,195.47,195.44,15.82428398]
[1734670447007,3.76880966,195.47,195.44,0.1198882]
[1734670447326,3.76880966,195.46,195.44,0.1198882]
[1734670447919,15.70439578,195.49,195.44,0.1198882]
[1734670447920,0.95928988,195.48,195.44,0.1198882]
[1734670448133,16.66368566,195.48,195.44,0.1198882]
[1734670448624,3.77046799,195.47,195.44,0.1198882]
[1734670449123,3.77046799,195.46,195.44,0.1198882]
[1734670449508,3.77046799,195.45,195.44,0.1198882]
[1734670453232,19.47486377,195.45,195.44,0.1198882]
[1734670454031,3.77046799,195.45,195.44,0.1198882]
[1734670454229,20.43435124,195.45,195.44,0.1198882]
[1734670455208,44.21123524,195.45,195.44,0.1198882]
[1734670455620,44.21123524,195.45,195.25,1.99026718]
[1734670455621,15.70439578,195.33,195.21,32.8064]
[1734670455910,15.70439578,195.4,195.24,16.32428398]
[1734670455911,15.70439578,195.31,195.24,16.32428398]
[1734670456231,0.96024098,195.3,195.24,16.32428398]
[1734670456617,16.66463676,195.3,195.24,0.6198882]
[1734670457703,15.70439578,195.28,195.24,0.6198882]
[1734670457908,0.9604106,195.27,195.24,0.6198882]
[1734670458228,4.731244,195.27,195.24,0.6198882]
[1734670458428,3.77087619,195.27,195.24,16.32428398]
[1734670458724,0.96023891,195.28,195.24,0.6198882]
[1734670458909,16.66469824,195.29,195.24,0.6198882]
[1734670459329,3.76837689,195.28,195.24,0.6198882]
[1734670459633,4.72869178,195.28,195.24,0.6198882]
[1734670459834,0.96031489,195.28,195.24,0.6198882]
[1734670460007,0.96028583,195.29,195.24,0.6198882]
[1734670460208,16.66468161,195.29,195.24,0.6198882]
[1734670460543,6.22518941,195.38,195.27,15.70439578]
[1734670460544,16.66468144,195.34,195.27,15.70439578]
[1734670461045,16.66468144,195.34,195.26,15.70439578]
[1734670461046,15.70439578,195.33,195.26,15.70439578]
[1734670461349,0.96013964,195.32,195.26,15.70439578]
[1734670461728,15.70439578,195.34,195.27,15.70439578]
[1734670462024,0.9600432,195.33,195.27,15.70439578]
[1734670462409,3.76452309,195.32,195.27,15.70439578]
[1734670462936,0.9600432,195.33,195.27,15.70439578]
[1734670463925,15.70439578,195.31,195.24,16.32428398]
[1734670464234,16.66468214,195.3,195.24,0.6198882]
[1734670464533,20.42308616,195.3,195.24,0.6198882]
[1734670464734,15.70439578,195.28,195.24,0.6198882]
[1734670464931,0.96034673,195.27,195.24,0.6198882]
[1734670465135,16.66474251,195.27,195.24,0.6198882]
[1734670466211,15.70439578,195.25,195.24,0.6198882]
[1734670468626,15.70439578,195.26,195.24,0.6198882]
[1734670468824,3.0831,195.3,195.24,0.6198882]
[1734670468825,16.66477655,195.25,195.24,0.6198882]
[1734670469339,15.70439578,195.26,195.24,0.6198882]
[1734670469740,0.96040571,195.29,195.24,0.6198882]
[1734670469741,15.70439578,195.28,195.24,0.6198882]
[1734670469927,0.96031477,195.27,195.24,0.6198882]
[1734670470329,15.70439578,195.3,195.24,0.6198882]
[1734670470539,15.70439578,195.31,195.24,16.32428398]
[1734670470848,0.96014002,195.3,195.24,16.32428398]
[1734670471230,0.96014002,195.3,195.24,0.6198882]
[1734670471231,15.70439578,195.29,195.24,0.6198882]
[1734670471429,15.70439578,195.28,195.24,0.6198882]
[1734670471831,15.70439578,195.29,195.24,0.6198882]
[1734670472346,15.70439578,195.28,195.24,0.6198882]
[1734670472726,15.70439578,195.29,195.24,0.6198882]
[1734670473745,15.70439578,195.3,195.24,0.6198882]
[1734670474541,15.70439578,195.29,195.24,0.6198882]
[1734670474928,15.70439578,195.3,195.24,0.6198882]
[1734670475357,15.70439578,195.31,195.24,0.6198882]
[1734670475529,0.96017665,195.3,195.24,0.6198882]
[1734670476030,0.96018028,195.36,195.27,15.70439578]
[1734670476231,15.70439578,195.39,195.31,15.70439578]
[1734670476429,15.70439578,195.39,195.32,15.70439578]
[1734670476653,4.70843867,195.38,195.32,15.70439578]
[1734670476827,3.74871745,195.37,195.33,15.70439578]
[1734670477033,3.74871745,195.37,195.34,15.70439578]
[1734670477351,3.74871745,195.39,195.34,15.70439578]
[1734670477650,3.74871745,195.4,195.34,15.70439578]
[1734670478257,3.74871745,195.4,195.35,15.70439578]
[1734670478770,15.70439578,195.42,195.35,15.70439578]
[1734670479851,15.70439578,195.4,195.29,12.801]
[1734670480039,15.70439578,195.39,195.32,15.70439578]
[1734670482159,15.70439578,195.4,195.33,15.70439578]
[1734670482343,15.70439578,195.39,195.32,15.70439578]
[1734670483158,15.70439578,195.4,195.33,15.70439578]
[1734670483338,0.9596937,195.45,195.35,15.70439578]
[1734670483658,15.70439578,195.45,195.38,15.70439578]
[1734670484059,3.75885412,195.44,195.38,15.70439578]
[1734670484554,3.75885412,195.44,195.4,15.70439578]
[1734670484762,0.9593504,195.46,195.4,15.70439578]
[1734670485459,15.70439578,195.48,195.41,15.70439578]
[1734670485760,3.7606361,195.47,195.41,15.70439578]
[1734670485940,4.71998678,195.47,195.4,15.70439578]
[1734670486256,3.7606361,195.47,195.42,15.70439578]
[1734670486461,16.66363575,195.48,195.41,15.70439578]
[1734670486652,15.70439578,195.47,195.4,15.70439578]
[1734670487361,15.70439578,195.48,195.41,15.70439578]
[1734670487859,15.70439578,195.46,195.39,15.70439578]
[1734670488168,3.1412,195.51,195.36,15.70439578]
[1734670488169,15.70439578,195.44,195.36,15.70439578]
[1734670488336,0.95952725,195.43,195.36,15.70439578]
[1734670488536,0.95952725,195.43,195.37,15.70439578]
[1734670489172,15.70439578,195.44,195.37,15.70439578]
[1734670489341,0.9595308,195.49,195.38,15.70439578]
[1734670489342,15.70439578,195.45,195.38,15.70439578]
[1734670489677,15.70439578,195.46,195.39,15.70439578]
[1734670490144,3.76454122,195.45,195.39,15.70439578]
[1734670490339,15.70439578,195.4,195.24,0.6198882]
[1734670490559,15.70439578,195.33,195.26,15.70439578]
[1734670490869,0.96003836,195.32,195.24,16.32428398]
[1734670491449,16.66443414,195.32,195.24,16.32428398]
[1734670491655,15.70439578,195.33,195.25,15.70439578]
[1734670492166,3.7640617,195.32,195.25,15.70439578]
[1734670492460,3.7640617,195.32,195.26,15.70439578]
[1734670492677,15.70439578,195.33,195.25,15.70439578]
[1734670492879,0.96005834,195.32,195.25,15.70439578]
[1734670493245,0.96006666,195.32,195.25,15.70439578]
[1734670493476,15.70439578,195.33,195.25,15.70439578]
[1734670494168,4.72578312,195.32,195.25,15.70439578]
[1734670494338,3.76572791,195.32,195.25,15.70439578]
[1734670494539,4.72577984,195.32,195.25,15.70439578]
[1734670494761,0.96005193,195.32,195.25,15.70439578]
[1734670495257,16.66444771,195.32,195.24,0.6198882]
[1734670495458,16.66444771,195.32,195.24,16.32428398]
[1734670496547,15.70439578,195.31,195.24,16.32428398]
[1734670496747,16.66455313,195.3,195.24,0.6198882]
[1734670497259,3.76876829,195.29,195.24,0.6198882]
[1734670497563,15.70439578,195.27,195.24,0.6198882]
[1734670497766,15.70439578,195.28,195.24,0.6198882]
[1734670497971,0.9603287,195.27,195.24,0.6198882]
[1734670498157,0.96031111,195.28,195.24,0.6198882]
[1734670498562,3.7695136,195.27,195.24,0.6198882]
[1734670498788,0.96032969,195.26,195.24,0.6198882]